[Event "FIDE U16 Olympiad_boards_1-80"]
[Site "Eindhoven, Netherlands"]
[Date "2023.08.13"]
[Round "1.21"]
[White "Begmuratov, Khumoyun"]
[Black "Huang, Youhe"]
[Result "1-0"]
[TimeControl "2700+10"]
[WhiteElo "2270"]
[BlackElo "1849"]

1. e4 {[%clk 00:45:14]} {[%emt 00:00:06]} c5 {[%clk 00:45:18]} {[%emt
00:00:03]} 2. Nf3 {[%clk 00:45:21]} {[%emt 00:00:02]} Nc6 {[%clk 00:45:27]}
{[%emt 00:00:02]} 3. d4 {[%clk 00:45:26]} {[%emt 00:00:05]} cxd4 {[%clk
00:45:35]} {[%emt 00:00:02]} 4. Nxd4 {[%clk 00:45:34]} {[%emt 00:00:02]} Nf6
{[%clk 00:45:29]} {[%emt 00:00:15]} 5. Nc3 {[%clk 00:45:42]} {[%emt 00:00:03]}
e5 {[%clk 00:45:29]} {[%emt 00:00:11]} 6. Ndb5 {[%clk 00:45:44]} {[%emt
00:00:07]} d6 {[%clk 00:45:37]} {[%emt 00:00:02]} 7. Bg5 {[%clk 00:45:31]}
{[%emt 00:00:22]} a6 {[%clk 00:45:33]} {[%emt 00:00:15]} 8. Na3 {[%clk
00:45:39]} {[%emt 00:00:01]} b5 {[%clk 00:45:26]} {[%emt 00:00:18]} 9. Nd5
{[%clk 00:45:37]} {[%emt 00:00:12]} Be7 {[%clk 00:45:32]} {[%emt 00:00:04]} 10.
Bxf6 {[%clk 00:45:45]} {[%emt 00:00:02]} Bxf6 {[%clk 00:45:40]} {[%emt
00:00:02]} 11. c4 {[%clk 00:45:54]} {[%emt 00:00:01]} b4 {[%clk 00:45:38]}
{[%emt 00:00:11]} 12. Nc2 {[%clk 00:46:01]} {[%emt 00:00:04]} Rb8 {[%clk
00:45:35]} {[%emt 00:00:13]} 13. b3 {[%clk 00:44:59]} {[%emt 00:01:12]} O-O
{[%clk 00:45:38]} {[%emt 00:00:06]} 14. g3 {[%clk 00:44:57]} {[%emt 00:00:13]}
Bg5 {[%clk 00:44:32]} {[%emt 00:01:16]} 15. Bg2 {[%clk 00:44:47]} {[%emt
00:00:19]} a5 {[%clk 00:41:32]} {[%emt 00:03:11]} 16. O-O {[%clk 00:44:48]}
{[%emt 00:00:08]} Ne7 {[%clk 00:41:32]} {[%emt 00:00:11]} 17. Nxe7+ {[%clk
00:34:46]} {[%emt 00:10:12]} Qxe7 {[%clk 00:41:09]} {[%emt 00:00:33]} 18. Qd3
{[%clk 00:34:43]} {[%emt 00:00:12]} Bb7 {[%clk 00:36:24]} {[%emt 00:04:56]} 19.
Rad1 {[%clk 00:32:32]} {[%emt 00:02:19]} Rbd8 {[%clk 00:35:05]} {[%emt
00:01:31]} 20. Ne3 {[%clk 00:28:41]} {[%emt 00:04:01]} Qc7 {[%clk 00:31:06]}
{[%emt 00:04:09]} 21. h4 {[%clk 00:23:59]} {[%emt 00:04:51]} Bxe3 {[%clk
00:30:54]} {[%emt 00:00:22]} 22. Qxe3 {[%clk 00:22:18]} {[%emt 00:01:52]} Qc5
{[%clk 00:30:59]} {[%emt 00:00:05]} 23. Rfe1 {[%clk 00:20:37]} {[%emt
00:01:51]} Rfe8 {[%clk 00:28:21]} {[%emt 00:02:47]} 24. Rd3 {[%clk 00:20:22]}
{[%emt 00:00:26]} Qxe3 {[%clk 00:26:52]} {[%emt 00:01:39]} 25. Rdxe3 {[%clk
00:19:53]} {[%emt 00:00:39]} Kf8 {[%clk 00:26:49]} {[%emt 00:00:13]} 26. Rd1
{[%clk 00:19:49]} {[%emt 00:00:14]} Ke7 {[%clk 00:26:54]} {[%emt 00:00:05]} 27.
Red3 {[%clk 00:19:14]} {[%emt 00:00:44]} Bc6 {[%clk 00:26:55]} {[%emt
00:00:10]} 28. f3 {[%clk 00:18:44]} {[%emt 00:00:39]} g6 {[%clk 00:24:54]}
{[%emt 00:02:12]} 29. Bh3 {[%clk 00:18:42]} {[%emt 00:00:12]} Rf8 {[%clk
00:20:37]} {[%emt 00:04:27]} 30. g4 {[%clk 00:16:42]} {[%emt 00:02:11]} f6
{[%clk 00:13:50]} {[%emt 00:06:57]} 31. Kf2 {[%clk 00:16:20]} {[%emt 00:00:30]}
g5 {[%clk 00:13:48]} {[%emt 00:00:12]} 32. hxg5 {[%clk 00:13:08]} {[%emt
00:03:23]} fxg5 {[%clk 00:13:57]} {[%emt 00:00:01]} 33. Ke3 {[%clk 00:13:12]}
{[%emt 00:00:06]} Rd7 {[%clk 00:13:14]} {[%emt 00:00:53]} 34. Bf1 {[%clk
00:13:02]} {[%emt 00:00:20]} Rfd8 {[%clk 00:10:52]} {[%emt 00:02:33]} 35. Be2
{[%clk 00:13:08]} {[%emt 00:00:04]} Ba8 {[%clk 00:10:19]} {[%emt 00:00:43]} 36.
Rh1 {[%clk 00:13:06]} {[%emt 00:00:11]} Kf6 {[%clk 00:08:56]} {[%emt 00:01:33]}
37. Rd2 {[%clk 00:13:12]} {[%emt 00:00:04]} Kg7 {[%clk 00:08:21]} {[%emt
00:00:45]} 38. Rc1 {[%clk 00:13:07]} {[%emt 00:00:15]} Bc6 {[%clk 00:07:52]}
{[%emt 00:00:39]} 39. c5 {[%clk 00:08:38]} {[%emt 00:04:39]} d5 {[%clk
00:07:59]} {[%emt 00:00:04]} 40. exd5 {[%clk 00:08:46]} {[%emt 00:00:01]} Rxd5
{[%clk 00:08:07]} {[%emt 00:00:02]} 41. Rxd5 {[%clk 00:08:54]} {[%emt
00:00:02]} Rxd5 {[%clk 00:07:12]} {[%emt 00:01:05]} 42. Bd3 {[%clk 00:09:03]}
{[%emt 00:00:01]} Rd4 {[%clk 00:05:51]} {[%emt 00:01:31]} 43. Be4 {[%clk
00:08:28]} {[%emt 00:00:45]} Bxe4 {[%clk 00:04:22]} {[%emt 00:01:39]} 44. fxe4
{[%clk 00:08:35]} {[%emt 00:00:02]} Rd8 {[%clk 00:02:56]} {[%emt 00:01:37]} 45.
c6 {[%clk 00:07:48]} {[%emt 00:00:56]} Kf6 {[%clk 00:02:58]} {[%emt 00:00:08]}
46. c7 {[%clk 00:07:01]} {[%emt 00:00:58]} Rc8 {[%clk 00:03:06]} {[%emt
00:00:02]} 47. Rc5 {[%clk 00:07:09]} {[%emt 00:00:02]} Ke6 {[%clk 00:03:05]}
{[%emt 00:00:11]} 48. Kd3 {[%clk 00:07:17]} {[%emt 00:00:02]} Kd6 {[%clk
00:02:41]} {[%emt 00:00:34]} 49. Kc4 {[%clk 00:07:25]} {[%emt 00:00:02]} Rxc7
{[%clk 00:02:11]} {[%emt 00:00:40]} 50. Rxc7 {[%clk 00:07:34]} Kxc7 {[%clk
00:02:20]} 51. Kd5 {[%clk 00:07:43]} {[%emt 00:00:01]} h5 {[%clk 00:02:26]}
{[%emt 00:00:04]} 52. gxh5 {[%clk 00:07:52]} {[%emt 00:00:01]} g4 {[%clk
00:02:35]} {[%emt 00:00:01]} 53. h6 {[%clk 00:07:58]} {[%emt 00:00:04]} g3
{[%clk 00:02:44]} 54. h7 {[%clk 00:08:04]} {[%emt 00:00:04]} g2 {[%clk
00:02:53]} {[%emt 00:00:01]} 55. h8=Q {[%clk 00:08:12]} {[%emt 00:00:02]} g1=Q
{[%clk 00:03:01]} {[%emt 00:00:02]} 56. Qxe5+ {[%clk 00:08:18]} {[%emt
00:00:03]} Kc8 {[%clk 00:02:07]} {[%emt 00:01:05]} 57. Qe8+ {[%clk 00:08:15]}
{[%emt 00:00:12]} Kc7 {[%clk 00:02:09]} {[%emt 00:00:09]} 58. Qe7+ {[%clk
00:08:22]} {[%emt 00:00:03]} Kb8 {[%clk 00:02:06]} {[%emt 00:00:14]} 59. Qd8+
{[%clk 00:08:22]} {[%emt 00:00:08]} Kb7 {[%clk 00:02:03]} {[%emt 00:00:14]} 60.
Qd7+ {[%clk 00:08:11]} {[%emt 00:00:20]} Kb8 {[%clk 00:01:18]} {[%emt
00:00:56]} 61. Qb5+ {[%clk 00:08:03]} {[%emt 00:00:18]} Ka8 {[%clk 00:01:26]}
{[%emt 00:00:03]} 62. Qxa5+ {[%clk 00:08:09]} {[%emt 00:00:04]} Kb7 {[%clk
00:01:29]} {[%emt 00:00:06]} 63. Qxb4+ {[%clk 00:08:16]} {[%emt 00:00:03]} Ka8
{[%clk 00:01:34]} {[%emt 00:00:05]} 64. Kc6 {[%clk 00:07:19]} {[%emt 00:01:05]}
Qg6+ {[%clk 00:00:13]} {[%emt 00:01:33]} 65. Qd6 {[%clk 00:07:28]} {[%emt
00:00:02]} Qxe4+ {[%clk 00:00:11]} {[%emt 00:00:11]} 66. Qd5 {[%clk 00:07:35]}
{[%emt 00:00:03]} Qe7 {[%clk 00:00:13]} {[%emt 00:00:08]} 67. Kb6+ {[%clk
00:07:44]} Kb8 {[%clk 00:00:21]} {[%emt 00:00:03]} 68. Qg8+ {[%clk 00:07:52]}
{[%emt 00:00:01]} 1-0

[Event "FIDE U16 Olympiad_boards_1-80"]
[Site "Eindhoven, Netherlands"]
[Date "2023.08.13"]
[Round "1.22"]
[White "Liu, Henry"]
[Black "Bakhrillaev, Bakhrom"]
[Result "0-1"]
[TimeControl "2700+10"]
[WhiteElo "1816"]
[BlackElo "2144"]

1. d4 {[%clk 00:45:18]} {[%emt 00:00:02]} Nf6 {[%clk 00:45:15]} {[%emt
00:00:05]} 2. Bf4 {[%clk 00:45:27]} {[%emt 00:00:01]} d5 {[%clk 00:45:23]}
{[%emt 00:00:03]} 3. e3 {[%clk 00:45:36]} {[%emt 00:00:01]} e6 {[%clk
00:45:31]} {[%emt 00:00:01]} 4. Nd2 {[%clk 00:45:36]} {[%emt 00:00:10]} c5
{[%clk 00:45:38]} {[%emt 00:00:03]} 5. c3 {[%clk 00:45:45]} {[%emt 00:00:01]}
Nc6 {[%clk 00:45:45]} {[%emt 00:00:02]} 6. Ngf3 {[%clk 00:45:50]} {[%emt
00:00:06]} Bd6 {[%clk 00:45:53]} {[%emt 00:00:02]} 7. Bg3 {[%clk 00:45:57]}
{[%emt 00:00:03]} O-O {[%clk 00:45:59]} {[%emt 00:00:04]} 8. Bd3 {[%clk
00:46:01]} {[%emt 00:00:07]} b6 {[%clk 00:46:07]} {[%emt 00:00:02]} 9. Qe2
{[%clk 00:45:30]} {[%emt 00:00:40]} h6 {[%clk 00:44:04]} {[%emt 00:02:13]} 10.
O-O {[%clk 00:44:45]} {[%emt 00:00:55]} Bb7 {[%clk 00:40:57]} {[%emt 00:03:17]}
11. Ne5 {[%clk 00:43:55]} {[%emt 00:01:00]} Qc7 {[%clk 00:33:31]} {[%emt
00:07:36]} 12. f4 {[%clk 00:42:50]} {[%emt 00:01:16]} Ne7 {[%clk 00:33:38]}
{[%emt 00:00:02]} 13. Rad1 {[%clk 00:34:58]} {[%emt 00:08:02]} Ne4 {[%clk
00:23:47]} {[%emt 00:10:01]} 14. Nxe4 {[%clk 00:28:11]} {[%emt 00:06:57]} dxe4
{[%clk 00:23:56]} {[%emt 00:00:02]} 15. Bc4 {[%clk 00:28:05]} {[%emt 00:00:15]}
Rad8 {[%clk 00:11:34]} {[%emt 00:12:32]} 16. Bh4 {[%clk 00:25:58]} {[%emt
00:02:17]} Bd5 {[%clk 00:09:28]} {[%emt 00:02:16]} 17. Bxe7 {[%clk 00:24:19]}
{[%emt 00:01:50]} Bxe7 {[%clk 00:09:21]} {[%emt 00:00:16]} 18. f5 {[%clk
00:20:28]} {[%emt 00:04:01]} cxd4 {[%clk 00:08:29]} {[%emt 00:01:02]} 19. cxd4
{[%clk 00:18:55]} {[%emt 00:01:44]} Bxc4 {[%clk 00:02:55]} {[%emt 00:05:43]} 20.
Nxc4 {[%clk 00:18:05]} {[%emt 00:01:00]} exf5 {[%clk 00:02:48]} {[%emt
00:00:17]} 21. Rxf5 {[%clk 00:17:30]} {[%emt 00:00:45]} g6 {[%clk 00:02:44]}
{[%emt 00:00:14]} 22. Rff1 {[%clk 00:16:51]} {[%emt 00:00:49]} Rc8 {[%clk
00:01:47]} {[%emt 00:01:07]} 23. b3 {[%clk 00:15:24]} {[%emt 00:01:37]} Kg7
{[%clk 00:01:06]} {[%emt 00:00:51]} 24. d5 {[%clk 00:14:06]} {[%emt 00:01:28]}
Rcd8 {[%clk 00:00:30]} {[%emt 00:00:46]} 25. Qb2+ {[%clk 00:10:00]} {[%emt
00:04:16]} Kg8 {[%clk 00:00:39]} {[%emt 00:00:01]} 26. Qd4 {[%clk 00:09:16]}
{[%emt 00:00:54]} Bc5 {[%clk 00:00:28]} {[%emt 00:00:20]} 27. Qxe4 {[%clk
00:06:10]} {[%emt 00:03:17]} b5 {[%clk 00:00:29]} {[%emt 00:00:09]} 28. d6
{[%clk 00:05:09]} {[%emt 00:01:11]} Bxd6 {[%clk 00:00:38]} {[%emt 00:00:02]} 29.
Nxd6 {[%clk 00:04:00]} {[%emt 00:01:18]} Rxd6 {[%clk 00:00:46]} {[%emt
00:00:01]} 30. Rc1 {[%clk 00:04:09]} Qb6 {[%clk 00:00:35]} {[%emt 00:00:22]} 31.
Rc3 {[%clk 00:02:26]} {[%emt 00:01:53]} Re6 {[%clk 00:00:29]} {[%emt 00:00:16]}
32. Qd4 {[%clk 00:01:53]} {[%emt 00:00:43]} Qa5 {[%clk 00:00:38]} 33. Rc2
{[%clk 00:01:45]} {[%emt 00:00:18]} h5 {[%clk 00:00:26]} {[%emt 00:00:23]} 34.
Rcf2 {[%clk 00:01:39]} {[%emt 00:00:16]} Qc7 {[%clk 00:00:30]} {[%emt
00:00:05]} 35. Qd3 {[%clk 00:01:08]} {[%emt 00:00:41]} a6 {[%clk 00:00:24]}
{[%emt 00:00:15]} 36. g3 {[%clk 00:00:32]} {[%emt 00:00:47]} Qe7 {[%clk
00:00:28]} {[%emt 00:00:06]} 37. Rf3 {[%clk 00:00:33]} {[%emt 00:00:09]} Rd8
{[%clk 00:00:28]} {[%emt 00:00:10]} 38. Qc3 {[%clk 00:00:30]} {[%emt 00:00:13]}
f5 {[%clk 00:00:30]} {[%emt 00:00:08]} 39. Rc1 {[%clk 00:00:29]} {[%emt
00:00:11]} Qb7 {[%clk 00:00:18]} {[%emt 00:00:22]} 40. Rf2 {[%clk 00:00:20]}
{[%emt 00:00:19]} Rde8 {[%emt 00:00:04]} 41. Qc7 {[%clk 00:00:16]} {[%emt
00:00:13]} Qxc7 {[%emt 00:00:23]} 42. Rxc7 {[%clk 00:00:23]} {[%emt 00:00:02]}
Rxe3 {[%clk 00:00:23]} 43. Rc6 {[%clk 00:00:28]} {[%emt 00:00:05]} R8e6 {[%clk
00:00:21]} {[%emt 00:00:12]} 44. Rfc2 {[%clk 00:00:32]} {[%emt 00:00:06]} Kf7
{[%clk 00:00:15]} {[%emt 00:00:17]} 45. Kf2 {[%clk 00:00:41]} {[%emt 00:00:01]}
Re2+ {[%clk 00:00:18]} {[%emt 00:00:07]} 46. Kf3 {[%clk 00:00:25]} {[%emt
00:00:25]} Rxc6 {[%clk 00:00:14]} {[%emt 00:00:14]} 47. Rxc6 {[%clk 00:00:33]}
{[%emt 00:00:02]} Rxa2 {[%clk 00:00:18]} {[%emt 00:00:07]} 48. h4 {[%clk
00:00:38]} {[%emt 00:00:04]} Ra3 {[%clk 00:00:21]} {[%emt 00:00:07]} 49. Kf4
{[%clk 00:00:46]} {[%emt 00:00:02]} Rxb3 {[%clk 00:00:29]} {[%emt 00:00:02]} 50.
Rxa6 {[%clk 00:00:53]} {[%emt 00:00:04]} Rb4+ {[%clk 00:00:20]} {[%emt
00:00:19]} 51. Ke5 {[%clk 00:00:45]} {[%emt 00:00:17]} Re4+ {[%clk 00:00:23]}
{[%emt 00:00:07]} 52. Kd5 {[%clk 00:00:50]} {[%emt 00:00:05]} Re3 {[%clk
00:00:29]} {[%emt 00:00:05]} 53. Rb6 {[%clk 00:00:18]} {[%emt 00:00:41]} Rxg3
{[%clk 00:00:34]} {[%emt 00:00:05]} 54. Rxb5 {[%clk 00:00:27]} Rg4 {[%clk
00:00:18]} {[%emt 00:00:26]} 55. Rb7+ {[%clk 00:00:32]} {[%emt 00:00:05]} Kf6
{[%clk 00:00:27]} 56. Rb6+ {[%clk 00:00:41]} {[%emt 00:00:01]} Kg7 {[%emt
00:00:01]} 57. Rb7+ {[%clk 00:00:15]} {[%emt 00:00:35]} Kh6 {[%clk 00:00:46]}
58. Ke6 {[%clk 00:00:24]} {[%emt 00:00:01]} Rxh4 {[%clk 00:00:55]} {[%emt
00:00:02]} 59. Kf6 {[%clk 00:00:29]} {[%emt 00:00:04]} Ra4 {[%clk 00:00:44]}
{[%emt 00:00:20]} 60. Rb6 {[%clk 00:00:22]} {[%emt 00:00:18]} h4 {[%clk
00:00:52]} {[%emt 00:00:03]} 61. Rc6 {[%clk 00:00:11]} {[%emt 00:00:21]} h3
{[%clk 00:00:59]} {[%emt 00:00:03]} 62. Rc3 {[%clk 00:00:15]} {[%emt 00:00:06]}
Rh4 {[%clk 00:01:04]} {[%emt 00:00:04]} 63. Rc8 {[%clk 00:00:20]} {[%emt
00:00:05]} Kh5 {[%emt 00:00:08]} 64. Rh8+ {[%clk 00:00:12]} {[%emt 00:00:16]}
Kg4 {[%clk 00:01:17]} {[%emt 00:00:01]} 65. Rg8 {[%clk 00:00:13]} {[%emt
00:00:09]} h2 {[%clk 00:01:23]} {[%emt 00:00:04]} 0-1

[Event "FIDE U16 Olympiad_boards_1-80"]
[Site "Eindhoven, Netherlands"]
[Date "2023.08.13"]
[Round "1.23"]
[White "Omonov, Asrorjon"]
[Black "Ajith, Aayush"]
[Result "1-0"]
[TimeControl "2700+10"]
[WhiteElo "2051"]
[BlackElo "1756"]

1. d4 {[%clk 00:45:06]} {[%emt 00:00:12]} Nf6 {[%clk 00:45:14]} {[%emt
00:00:06]} 2. c4 {[%clk 00:45:12]} {[%emt 00:00:05]} e6 {[%clk 00:45:15]}
{[%emt 00:00:09]} 3. Nc3 {[%clk 00:45:19]} {[%emt 00:00:03]} d5 {[%clk
00:45:21]} {[%emt 00:00:04]} 4. cxd5 {[%clk 00:45:14]} {[%emt 00:00:16]} exd5
{[%clk 00:45:26]} {[%emt 00:00:04]} 5. Bg5 {[%clk 00:45:22]} {[%emt 00:00:03]}
Nbd7 {[%clk 00:45:12]} {[%emt 00:00:24]} 6. e3 {[%clk 00:45:28]} {[%emt
00:00:04]} h6 {[%clk 00:45:02]} {[%emt 00:00:18]} 7. Bh4 {[%clk 00:45:12]}
{[%emt 00:00:27]} Be7 {[%clk 00:43:59]} {[%emt 00:01:12]} 8. Bd3 {[%clk
00:45:17]} {[%emt 00:00:07]} O-O {[%clk 00:43:48]} {[%emt 00:00:21]} 9. Qc2
{[%clk 00:45:05]} {[%emt 00:00:22]} Re8 {[%clk 00:41:44]} {[%emt 00:02:13]} 10.
Nge2 {[%clk 00:45:09]} {[%emt 00:00:06]} c6 {[%clk 00:40:08]} {[%emt 00:01:46]}
11. O-O {[%clk 00:44:40]} {[%emt 00:00:39]} Ne4 {[%clk 00:38:22]} {[%emt
00:01:56]} 12. Bxe7 {[%clk 00:44:18]} {[%emt 00:00:33]} Qxe7 {[%clk 00:38:28]}
{[%emt 00:00:03]} 13. Rae1 {[%clk 00:44:27]} {[%emt 00:00:02]} Nef6 {[%clk
00:28:44]} {[%emt 00:09:53]} 14. Ng3 {[%clk 00:38:12]} {[%emt 00:06:25]} c5
{[%clk 00:23:17]} {[%emt 00:05:37]} 15. Nf5 {[%clk 00:28:03]} {[%emt 00:10:19]}
Qf8 {[%clk 00:20:17]} {[%emt 00:03:09]} 16. dxc5 {[%clk 00:22:04]} {[%emt
00:06:10]} Nxc5 {[%clk 00:18:00]} {[%emt 00:02:27]} 17. Be2 {[%clk 00:17:55]}
{[%emt 00:04:19]} Nce4 {[%clk 00:12:42]} {[%emt 00:05:27]} 18. Nd4 {[%clk
00:16:08]} {[%emt 00:01:57]} Be6 {[%clk 00:12:08]} {[%emt 00:00:44]} 19. Rc1
{[%clk 00:08:18]} {[%emt 00:08:00]} Rac8 {[%clk 00:11:01]} {[%emt 00:01:17]} 20.
Qd3 {[%clk 00:07:06]} {[%emt 00:01:23]} Nxc3 {[%clk 00:07:31]} {[%emt
00:03:40]} 21. Rxc3 {[%clk 00:07:07]} {[%emt 00:00:09]} Rxc3 {[%clk 00:07:01]}
{[%emt 00:00:39]} 22. Qxc3 {[%clk 00:07:15]} {[%emt 00:00:02]} Rc8 {[%clk
00:06:25]} {[%emt 00:00:46]} 23. Qb3 {[%clk 00:05:34]} {[%emt 00:01:52]} Qe7
{[%clk 00:05:33]} {[%emt 00:01:01]} 24. Rd1 {[%clk 00:05:05]} {[%emt 00:00:39]}
a6 {[%clk 00:04:39]} {[%emt 00:01:04]} 25. h3 {[%clk 00:04:16]} {[%emt
00:00:59]} Ne4 {[%clk 00:04:28]} {[%emt 00:00:21]} 26. Bf3 {[%clk 00:04:04]}
{[%emt 00:00:23]} b5 {[%clk 00:03:16]} {[%emt 00:01:22]} 27. Nxe6 {[%clk
00:02:29]} {[%emt 00:01:45]} Qxe6 {[%clk 00:02:20]} {[%emt 00:01:06]} 28. Bg4
{[%clk 00:00:59]} {[%emt 00:01:40]} f5 {[%clk 00:00:57]} {[%emt 00:01:33]} 29.
Rxd5 {[%clk 00:00:29]} {[%emt 00:00:40]} Rc1+ {[%clk 00:00:40]} {[%emt
00:00:26]} 30. Kh2 {[%clk 00:00:37]} {[%emt 00:00:03]} fxg4 {[%clk 00:00:16]}
{[%emt 00:00:34]} 31. Rd8+ {[%clk 00:00:46]} Kf7 {[%clk 00:00:25]} 32. Rf8+
{[%clk 00:00:56]} Kxf8 {[%clk 00:00:27]} {[%emt 00:00:08]} 33. Qxe6 {[%clk
00:01:05]} Nf6 {[%clk 00:00:17]} {[%emt 00:00:20]} 34. hxg4 {[%clk 00:00:51]}
{[%emt 00:00:24]} Rc4 {[%clk 00:00:20]} {[%emt 00:00:08]} 35. f3 {[%clk
00:00:57]} {[%emt 00:00:04]} a5 {[%clk 00:00:21]} {[%emt 00:00:08]} 36. Qd6+
{[%clk 00:00:56]} {[%emt 00:00:12]} Kf7 {[%clk 00:00:20]} {[%emt 00:00:11]} 37.
Qb6 {[%clk 00:01:05]} {[%emt 00:00:01]} Rb4 {[%clk 00:00:17]} {[%emt 00:00:13]}
38. b3 {[%clk 00:01:10]} {[%emt 00:00:05]} a4 {[%clk 00:00:14]} {[%emt
00:00:13]} 39. bxa4 {[%clk 00:01:19]} {[%emt 00:00:01]} Rxa4 {[%clk 00:00:22]}
{[%emt 00:00:02]} 40. Qxb5 {[%clk 00:01:28]} {[%emt 00:00:01]} Ra7 {[%clk
00:00:26]} {[%emt 00:00:06]} 41. a4 {[%clk 00:01:37]} {[%emt 00:00:02]} Re7
{[%clk 00:00:31]} {[%emt 00:00:04]} 42. e4 {[%clk 00:01:38]} {[%emt 00:00:08]}
Nd7 {[%clk 00:00:36]} {[%emt 00:00:05]} 43. a5 {[%clk 00:01:46]} {[%emt
00:00:03]} Nf8 {[%clk 00:00:27]} {[%emt 00:00:19]} 44. a6 {[%clk 00:01:48]}
{[%emt 00:00:08]} Ne6 {[%clk 00:00:33]} {[%emt 00:00:04]} 45. Qb6 {[%clk
00:01:55]} {[%emt 00:00:03]} Nc7 {[%clk 00:00:32]} {[%emt 00:00:11]} 46. a7
{[%clk 00:02:03]} {[%emt 00:00:02]} Na8 {[%clk 00:00:40]} {[%emt 00:00:01]} 47.
Qb8 {[%clk 00:01:56]} {[%emt 00:00:18]} Re8 {[%clk 00:00:49]} {[%emt 00:00:02]}
48. Qb7+ {[%clk 00:02:05]} {[%emt 00:00:01]} Kf8 {[%clk 00:00:55]} {[%emt
00:00:03]} 49. e5 {[%clk 00:02:14]} Kg8 {[%clk 00:01:00]} {[%emt 00:00:05]} 50.
e6 {[%clk 00:02:23]} {[%emt 00:00:01]} Kf8 {[%clk 00:01:07]} {[%emt 00:00:02]}
51. Qf7# {[%clk 00:02:32]} {[%emt 00:00:01]} 1-0

[Event "FIDE U16 Olympiad_boards_1-80"]
[Site "Eindhoven, Netherlands"]
[Date "2023.08.13"]
[Round "1.24"]
[White "Gao, Lucy"]
[Black "Khamdamova, Afruza"]
[Result "0-1"]
[TimeControl "2700+10"]
[WhiteElo "1618"]
[BlackElo "2112"]

1. e4 {[%clk 00:45:18]} {[%emt 00:00:01]} e5 {[%clk 00:45:18]} {[%emt
00:00:02]} 2. Nf3 {[%clk 00:45:26]} {[%emt 00:00:03]} Nc6 {[%clk 00:45:27]}
{[%emt 00:00:01]} 3. d4 {[%clk 00:45:34]} {[%emt 00:00:02]} exd4 {[%clk
00:45:34]} {[%emt 00:00:02]} 4. Bc4 {[%clk 00:45:39]} {[%emt 00:00:06]} Nf6
{[%clk 00:45:25]} {[%emt 00:00:19]} 5. e5 {[%clk 00:45:38]} {[%emt 00:00:11]}
d5 {[%clk 00:45:02]} {[%emt 00:00:33]} 6. Bb5 {[%clk 00:45:36]} {[%emt
00:00:11]} Ne4 {[%clk 00:45:04]} {[%emt 00:00:09]} 7. Nxd4 {[%clk 00:45:29]}
{[%emt 00:00:17]} Bd7 {[%clk 00:44:29]} {[%emt 00:00:44]} 8. Bxc6 {[%clk
00:45:23]} {[%emt 00:00:16]} bxc6 {[%clk 00:44:15]} {[%emt 00:00:25]} 9. O-O
{[%clk 00:45:08]} {[%emt 00:00:25]} Be7 {[%clk 00:39:50]} {[%emt 00:04:35]} 10.
f3 {[%clk 00:44:23]} {[%emt 00:00:55]} Nc5 {[%clk 00:39:28]} {[%emt 00:00:32]}
11. Be3 {[%clk 00:43:20]} {[%emt 00:01:13]} O-O {[%clk 00:39:11]} {[%emt
00:00:26]} 12. Nd2 {[%clk 00:41:08]} {[%emt 00:02:22]} Rb8 {[%clk 00:39:00]}
{[%emt 00:00:21]} 13. N2b3 {[%clk 00:38:54]} {[%emt 00:02:25]} Na4 {[%clk
00:37:45]} {[%emt 00:01:25]} 14. Rb1 {[%clk 00:35:59]} {[%emt 00:03:04]} c5
{[%clk 00:37:44]} {[%emt 00:00:11]} 15. Ne2 {[%clk 00:35:37]} {[%emt 00:00:32]}
d4 {[%clk 00:36:51]} {[%emt 00:01:04]} 16. Bf2 {[%clk 00:33:32]} {[%emt
00:02:15]} Bb5 {[%clk 00:36:13]} {[%emt 00:00:48]} 17. Re1 {[%clk 00:29:10]}
{[%emt 00:04:32]} Re8 {[%clk 00:35:38]} {[%emt 00:00:44]} 18. f4 {[%clk
00:24:55]} {[%emt 00:04:26]} d3 {[%clk 00:23:12]} {[%emt 00:12:36]} 19. Nec1
{[%clk 00:21:45]} {[%emt 00:03:20]} c4 {[%clk 00:20:13]} {[%emt 00:03:09]} 20.
Nd4 {[%clk 00:20:36]} {[%emt 00:01:19]} c5 {[%clk 00:18:20]} {[%emt 00:02:03]}
21. Nf3 {[%clk 00:18:30]} {[%emt 00:02:17]} Ba6 {[%clk 00:16:07]} {[%emt
00:02:22]} 22. cxd3 {[%clk 00:15:42]} {[%emt 00:02:59]} Nc3 {[%clk 00:10:28]}
{[%emt 00:05:48]} 23. bxc3 {[%clk 00:15:27]} {[%emt 00:00:25]} Rxb1 {[%clk
00:10:37]} {[%emt 00:00:01]} 24. dxc4 {[%clk 00:12:47]} {[%emt 00:02:50]} Qxd1
{[%clk 00:10:18]} {[%emt 00:00:30]} 25. Rxd1 {[%clk 00:12:53]} {[%emt
00:00:04]} Rd8 {[%clk 00:09:55]} {[%emt 00:00:32]} 26. Rxd8+ {[%clk 00:12:11]}
{[%emt 00:00:52]} Bxd8 {[%clk 00:09:32]} {[%emt 00:00:33]} 27. Be3 {[%clk
00:12:05]} {[%emt 00:00:15]} Bxc4 {[%clk 00:09:38]} {[%emt 00:00:04]} 28. Kf2
{[%clk 00:11:08]} {[%emt 00:01:08]} Ba5 {[%clk 00:08:11]} {[%emt 00:01:37]} 29.
Nb3 {[%clk 00:05:51]} {[%emt 00:05:28]} Bxb3 {[%clk 00:06:35]} {[%emt
00:01:45]} 30. axb3 {[%clk 00:05:56]} {[%emt 00:00:04]} Rb2+ {[%clk 00:05:12]}
{[%emt 00:01:34]} 31. Kg3 {[%clk 00:05:43]} {[%emt 00:00:23]} Bxc3 {[%clk
00:04:55]} {[%emt 00:00:27]} 32. Bxc5 {[%clk 00:05:22]} {[%emt 00:00:32]} a5
{[%clk 00:05:02]} {[%emt 00:00:02]} 33. f5 {[%clk 00:03:05]} {[%emt 00:02:27]}
Rxb3 {[%clk 00:05:07]} {[%emt 00:00:05]} 34. e6 {[%clk 00:03:03]} {[%emt
00:00:12]} fxe6 {[%clk 00:05:16]} 35. fxe6 {[%clk 00:03:12]} {[%emt 00:00:01]}
Bb4 {[%clk 00:05:12]} {[%emt 00:00:13]} 36. Bd4 {[%clk 00:02:21]} {[%emt
00:01:02]} a4 {[%clk 00:05:18]} {[%emt 00:00:04]} 37. Kf4 {[%clk 00:01:55]}
{[%emt 00:00:36]} a3 {[%clk 00:05:19]} {[%emt 00:00:09]} 38. Ne5 {[%clk
00:01:06]} {[%emt 00:00:59]} a2 {[%clk 00:05:14]} {[%emt 00:00:14]} 39. Ba1
{[%clk 00:00:40]} {[%emt 00:00:37]} Kf8 {[%clk 00:05:03]} {[%emt 00:00:21]} 40.
Nd7+ {[%clk 00:00:14]} {[%emt 00:00:36]} Ke7 {[%clk 00:05:04]} {[%emt
00:00:09]} 41. Bxg7 {[%clk 00:00:13]} {[%emt 00:00:11]} Bc3 {[%clk 00:05:12]}
{[%emt 00:00:02]} 0-1